[Event "GER-chT Youth Countries 2020"]
[Site "Berlin"]
[Date "2020.10.02"]
[Round "5"]
[White "Heuberger, Sandra"]
[Black "Khanbekyan, Nare"]
[Result "1-0"]
[ECO "E21"]
[WhiteElo "1004"]
[BlackElo "1334"]
[Annotator "NA"]
[PlyCount "91"]
[EventDate "2020.09.30"]
[EventType "team-tourn"]
[EventRounds "7"]
[EventCountry "GER"]
[SourceTitle "playchess.com"]
[Source "ChessBase"]
[SourceQuality "1"]
[TimeControl "30/5400+30:0"]

1. d4 {[%emt 0:00:00]} Nf6 {[%emt 0:00:00]} 2. c4 {[%emt 0:00:00]} e6 {[%emt 0:00:00]} 3. Nc3 {[%emt 0:00:00]} Bb4 {[%emt 0:00:00]} 4. Nf3 {[%emt 0:00:26]} b6 {[%emt 0:00:16]} 5. Bg5 {[%emt 0:00:26]} Bb7 {[%emt 0:00:43]} 6. e3 {[%emt 0:00:10]} d5 {[%emt 0:00:20]} 7. Bd3 {[%emt 0:00:17]} Nbd7 {[%emt 0:00:45]} 8. O-O {[%emt 0:01:06]} Bxc3 {[%emt 0:00:36]} 9. bxc3 {[%emt 0:00:10]} c5 {[%emt 0:00:23]} 10. Re1 {[%emt 0:00:46]} h6 {[%emt 0:00:45]} 11. Bh4 {[%emt 0:00:16]} g5 {[%emt 0:02:40]} 12. Bg3 {[%emt 0:00:31]} Rc8 {[%emt 0:07:46]} 13. Rc1 {[%emt 0:01:41]} cxd4 {[%emt 0:01:24]} 14. cxd4 {[%emt 0:00:20]} dxc4 {[%emt 0:01:05]} 15. Bxc4 {[%emt 0:00:39]} Ne4 {[%emt 0:01:36]} 16. Qe2 {[%emt 0:10:50]} h5 {[%emt 0:01:55]} 17. h3 {[%emt 0:00:35]} f5 {[%emt 0:01:52]} 18. Bxe6 {[%emt 0:03:59]} Rxc1 {[%emt 0:10:51]} 19. Rxc1 {[%emt 0:00:10]} Nxg3 {[%emt 0:01:51]} 20. fxg3 {[%emt 0:00:34]} g4 {[%emt 0:00:59]} 21. Bxd7+ {[%emt 0:00:24]} Qxd7 {[%emt 0:00:33]} 22. Ne5 {[%emt 0:00:25]} Qd5 {[%emt 0:00:58]} 23. Rf1 {[%emt 0:02:52]} gxh3 {[%emt 0:02:20]} 24. Nf3 {[%emt 0:08:04]} h4 {[%emt 0:02:13]} 25. Nxh4 {[%emt 0:04:41]} f4 {[%emt 0:19:45]} 26. exf4+ {[%emt 0:00:16]} Kd8 {[%emt 0:01:50]} 27. Nf3 {[%emt 0:07:39]} Qg8 {[%emt 0:03:21]} 28. Qf2 {[%emt 0:13:27]} Qg4 {[%emt 0:02:34]} 29. Ne5 {[%emt 0:05:17]} hxg2 {[%emt 0:02:25]} 30. Qxg2 {[%emt 0:10:58]} Bxg2 {[%emt 0:00:43]} 31. Nxg4 {[%emt 1:30:24]} Bxf1 {[%emt 1:30:14]} 32. Kxf1 {[%emt 0:00:10]} Rh2 {[%emt 0:00:13]} 33. Nxh2 {[%emt 0:00:09]} a5 {[%emt 0:00:21]} 34. Ke2 {[%emt 0:00:09]} Kd7 {[%emt 0:00:20]} 35. Kd3 {[%emt 0:00:08]} Kc6 {[%emt 0:00:16]} 36. f5 {[%emt 0:00:17]} Kd6 {[%emt 0:00:19]} 37. g4 {[%emt 0:00:09]} Ke7 {[%emt 0:00:26]} 38. g5 {[%emt 0:00:15]} Kf7 {[%emt 0:00:13]} 39. f6 {[%emt 0:00:22]} b5 {[%emt 0:00:13]} 40. Nf3 {[%emt 0:00:18]} b4 {[%emt 0:00:18]} 41. Kc4 {[%emt 0:00:19]} Kf8 {[%emt 0:00:28]} 42. g6 {[%emt 0:00:21]} Ke8 {[%emt 0:01:35]} 43. Ne5 {[%emt 0:00:24]} Kf8 {[%emt 0:00:12]} 44. f7 {[%emt 0:00:39]} Kg7 {[%emt 0:00:43]} 45. Nd7 {[%emt 0:00:13]} Kxg6 {[%emt 0:00:28]} 46. f8=Q {[%emt 0:00:13]} 1-0

[Event "GER-chT Youth Countries 2020"]
[Site "Berlin"]
[Date "2020.10.02"]
[Round "5"]
[White "Marrufo, Emilia"]
[Black "Chassard, Cecilia"]
[Result "0-1"]
[ECO "A40"]
[WhiteElo "796"]
[BlackElo "980"]
[Annotator "NA"]
[PlyCount "36"]
[EventDate "2020.09.30"]
[EventType "team-tourn"]
[EventRounds "7"]
[EventCountry "GER"]
[SourceTitle "playchess.com"]
[Source "ChessBase"]
[SourceQuality "1"]
[TimeControl "30/5400+30:0"]

1. d4 {[%emt 0:00:00]} e6 {[%emt 0:00:00]} 2. e3 {[%emt 0:00:00]} d5 {[%emt 0:00:00]} 3. Bd3 {[%emt 0:00:00]} Nf6 {[%emt 0:00:00]} 4. f4 {[%emt 0:00:18]} c5 {[%emt 0:00:08]} 5. c3 {[%emt 0:00:12]} Nc6 {[%emt 0:00:24]} 6. Nf3 {[%emt 0:00:22]} cxd4 {[%emt 0:01:51]} 7. exd4 {[%emt 0:00:36]} Bd6 {[%emt 0:01:17]} 8. O-O {[%emt 0:00:26]} O-O {[%emt 0:00:38]} 9. Nbd2 {[%emt 0:00:14]} Bxf4 {[%emt 0:00:31]} 10. Ne5 {[%emt 0:00:33]} Bxe5 {[%emt 0:00:23]} 11. dxe5 {[%emt 0:00:52]} Nxe5 {[%emt 0:00:08]} 12. Bc2 {[%emt 0:00:23]} Nfg4 {[%emt 0:00:39]} 13. Nf3 {[%emt 0:00:51]} Bd7 {[%emt 0:03:52]} 14. Bf4 {[%emt 0:02:24]} Qf6 {[%emt 0:00:49]} 15. Re1 {[%emt 0:01:19]} Qxf4 {[%emt 0:00:34]} 16. Bb1 {[%emt 0:02:05]} Bb5 {[%emt 0:03:18]} 17. Qc2 {[%emt 0:01:56]} Nxf3+ {[%emt 0:02:43]} 18. Kh1 {[%emt 0:00:37]} Qxh2# {[%emt 0:00:00]} 0-1

[Event "GER-chT Youth Countries 2020"]
[Site "Berlin"]
[Date "2020.10.03"]
[Round "6"]
[White "Vogel, Roven"]
[Black "Jeschke, Jan"]
[Result "1/2-1/2"]
[ECO "D75"]
[WhiteElo "2456"]
[BlackElo "2043"]
[Annotator "ChessBase"]
[PlyCount "62"]
[EventDate "2020.09.30"]
[EventType "team-tourn"]
[EventRounds "7"]
[EventCountry "GER"]
[SourceTitle "playchess.com"]
[Source "ChessBase"]
[SourceQuality "1"]
[TimeControl "30/5400+30:0"]

1. Nf3 {[%emt 0:00:00]} Nf6 {[%emt 0:00:00]} 2. c4 {[%emt 0:00:12]} g6 {[%emt 0:00:48]} 3. Nc3 {[%emt 0:00:10]} Bg7 {[%emt 0:00:10]} 4. d4 {[%emt 0:00:57]} O-O {[%emt 0:01:04]} 5. g3 {[%emt 0:00:07]} d5 {[%emt 0:04:51]} 6. cxd5 {[%emt 0:01:11]} Nxd5 {[%emt 0:00:14]} 7. Bg2 {[%emt 0:00:08]} c5 {[%emt 0:07:00]} 8. O-O {[%emt 0:00:22]} Nc6 {[%emt 0:04:42]} 9. Nxd5 {[%emt 0:00:26]} Qxd5 {[%emt 0:00:11]} 10. Be3 {[%emt 0:00:08]} Qh5 {[%emt 0:04:11]} 11. dxc5 {[%emt 0:02:51]} Bxb2 {[%emt 0:05:31]} 12. Rb1 {[%emt 0:00:06]} Bg7 {[%emt 0:00:16]} 13. Qa4 {[%emt 0:04:26]} Rb8 {[%emt 0:03:54]} 14. Nd4 {[%emt 0:02:31]} Nxd4 {[%emt 0:10:09]} 15. Bxd4 {[%emt 0:00:24]} Bxd4 {[%emt 0:00:23]} 16. Qxd4 {[%emt 0:00:07]} Bh3 {[%emt 0:00:43]} 17. Bf3 {[%emt 0:01:18]} Qg5 {[%emt 0:01:36]} 18. Rfd1 {[%emt 0:03:39]} Rfc8 {[%emt 0:03:23]} 19. Rxb7 {[%emt 0:13:08]} Rxb7 {[%emt 0:02:05]} 20. Bxb7 {[%emt 0:00:07]} Rxc5 {[%emt 0:00:33]} 21. f4 {[%emt 0:14:47]} Qf5 {[%emt 0:00:40]} 22. Bf3 {[%emt 0:00:59]} Qc8 {[%emt 0:04:44]} 23. Kf2 {[%emt 0:08:03]} Be6 {[%emt 0:03:40]} 24. Rd3 {[%emt 0:01:11]} Ra5 {[%emt 0:04:48]} 25. Rc3 {[%emt 0:03:27]} Qd7 {[%emt 0:05:32]} 26. Qxd7 {[%emt 0:07:55]} Bxd7 {[%emt 0:00:05]} 27. a3 {[%emt 0:00:06]} Kg7 28. g4 {[%emt 0:00:48]} h6 {[%emt 0:11:33]} 29. h4 {[%emt 0:03:35]} e5 {[%emt 0:00:26]} 30. fxe5 {[%emt 0:01:19]} Be6 {[%emt 0:00:31]} 31. Re3 {[%emt 1:31:41]} g5 {[%emt 1:30:16]} 1/2-1/2

[Event "GER-chT Youth Countries 2020"]
[Site "Berlin"]
[Date "2020.10.03"]
[Round "6"]
[White "Muckle, Julius"]
[Black "Pubantz, Jan"]
[Result "1-0"]
[ECO "D45"]
[WhiteElo "2427"]
[BlackElo "2295"]
[Annotator "ChessBase"]
[PlyCount "59"]
[EventDate "2020.09.30"]
[EventType "team-tourn"]
[EventRounds "7"]
[EventCountry "GER"]
[SourceTitle "playchess.com"]
[Source "ChessBase"]
[SourceQuality "1"]
[TimeControl "30/5400+30:0"]

1. d4 d5 {[%emt 0:00:00]} 2. c4 {[%emt 0:00:00]} c6 {[%emt 0:00:00]} 3. Nf3 {[%emt 0:00:45]} Nf6 {[%emt 0:00:08]} 4. Nc3 {[%emt 0:00:17]} e6 {[%emt 0:01:06]} 5. e3 {[%emt 0:00:14]} Nbd7 {[%emt 0:00:29]} 6. Qc2 {[%emt 0:00:10]} Bd6 7. b3 {[%emt 0:00:06]} O-O {[%emt 0:01:20]} 8. Bb2 {[%emt 0:00:47]} e5 9. Be2 {[%emt 0:00:06]} e4 {[%emt 0:02:27]} 10. Nd2 {[%emt 0:12:03]} Nb8 {[%emt 0:02:20]} 11. h3 {[%emt 0:10:59]} Na6 {[%emt 0:13:00]} 12. O-O-O {[%emt 0:09:35]} b5 {[%emt 0:04:00]} 13. c5 {[%emt 0:01:20]} Be7 {[%emt 0:02:42]} 14. g4 {[%emt 0:00:34]} Ne8 {[%emt 0:03:18]} 15. f3 {[%emt 0:01:20]} f5 {[%emt 0:13:55]} 16. Rdf1 {[%emt 0:03:01]} Bg5 {[%emt 0:04:00]} 17. Nd1 {[%emt 0:02:56]} f4 {[%emt 0:03:45]} 18. fxe4 {[%emt 0:00:38]} fxe3 {[%emt 0:00:02]} 19. Rxf8+ {[%emt 0:00:19]} Kxf8 {[%emt 0:01:31]} 20. Nf3 {[%emt 0:02:36]} Nb4 {[%emt 0:14:16]} 21. Qb1 {[%emt 0:00:25]} dxe4 {[%emt 0:03:26]} 22. Qxe4 {[%emt 0:03:24]} Be7 {[%emt 0:08:37]} 23. Qxh7 {[%emt 0:15:49]} Qd5 {[%emt 0:05:44]} 24. a3 {[%emt 0:00:06]} Na2+ {[%emt 0:03:24]} 25. Kb1 {[%emt 0:01:09]} Be6 26. Kxa2 {[%emt 0:00:01]} Qxb3+ {[%emt 0:01:27]} 27. Kb1 {[%emt 0:01:33]} Nf6 28. Qc2 {[%emt 0:00:11]} Qa2+ {[%emt 0:05:39]} 29. Kc1 {[%emt 0:00:20]} Bb3 30. Nc3 1-0

[Event "GER-chT Youth Countries 2020"]
[Site "Berlin"]
[Date "2020.10.03"]
[Round "6"]
[White "Reuker, Jari"]
[Black "Arndt, Magnus"]
[Result "1-0"]
[ECO "A14"]
[WhiteElo "2401"]
[BlackElo "2298"]
[Annotator "ChessBase"]
[PlyCount "55"]
[EventDate "2020.09.30"]
[EventType "team-tourn"]
[EventRounds "7"]
[EventCountry "GER"]
[SourceTitle "playchess.com"]
[Source "ChessBase"]
[SourceQuality "1"]
[TimeControl "30/5400+30:0"]

1. Nf3 {[%emt 0:00:00]} Nf6 {[%emt 0:00:00]} 2. c4 {[%emt 0:00:00]} e6 {[%emt 0:00:00]} 3. g3 {[%emt 0:00:00]} d5 {[%emt 0:00:05]} 4. Bg2 {[%emt 0:00:00]} Be7 {[%emt 0:00:05]} 5. O-O {[%emt 0:00:00]} O-O {[%emt 0:00:05]} 6. b3 {[%emt 0:00:01]} Nbd7 {[%emt 0:01:42]} 7. Bb2 {[%emt 0:00:07]} b6 {[%emt 0:00:13]} 8. cxd5 {[%emt 0:04:32]} exd5 {[%emt 0:00:32]} 9. Nd4 {[%emt 0:05:37]} Bb7 {[%emt 0:10:45]} 10. Qc2 {[%emt 0:06:33]} c5 {[%emt 0:03:38]} 11. Nf5 {[%emt 0:00:06]} Re8 {[%emt 0:03:28]} 12. Nc3 {[%emt 0:14:12]} Nf8 {[%emt 0:20:23]} 13. d4 {[%emt 0:02:43]} Ne6 {[%emt 0:15:29]} 14. Rad1 {[%emt 0:04:51]} cxd4 {[%emt 0:09:13]} 15. Nxd4 {[%emt 0:05:05]} Nxd4 {[%emt 0:02:59]} 16. Rxd4 {[%emt 0:00:06]} Bc5 {[%emt 0:01:31]} 17. Rh4 {[%emt 0:08:29]} Rc8 {[%emt 0:05:41]} 18. Qf5 {[%emt 0:06:38]} g6 {[%emt 0:13:15]} 19. Qd3 {[%emt 0:02:57]} Qe7 {[%emt 0:05:28]} 20. Nxd5 {[%emt 0:14:49]} Bxd5 {[%emt 0:01:31]} 21. Bxd5 {[%emt 0:03:33]} Nxd5 {[%emt 0:01:13]} 22. Qxd5 {[%emt 0:00:06]} Qxe2 {[%emt 0:01:28]} 23. Rxh7 {[%emt 0:01:50]} Kxh7 {[%emt 0:00:01]} 24. Qxf7+ {[%emt 0:00:08]} Kh6 {[%emt 0:00:06]} 25. Bg7+ {[%emt 0:01:31]} Kh5 {[%emt 0:01:18]} 26. Qd5+ {[%emt 0:00:08]} Kg4 {[%emt 0:02:15]} 27. Kg2 {[%emt 0:01:01]} Qe4+ {[%emt 0:00:34]} 28. f3+ {[%emt 0:00:06]} 1-0

[Event "GER-chT Youth Countries 2020"]
[Site "Berlin"]
[Date "2020.10.03"]
[Round "6"]
[White "Krastev, Alexander"]
[Black "Nothnagel, Marian Can"]
[Result "1/2-1/2"]
[ECO "C41"]
[WhiteElo "2340"]
[BlackElo "2355"]
[Annotator "ChessBase"]
[PlyCount "84"]
[EventDate "2020.09.30"]
[EventType "team-tourn"]
[EventRounds "7"]
[EventCountry "GER"]
[SourceTitle "playchess.com"]
[Source "ChessBase"]
[SourceQuality "1"]
[TimeControl "30/5400+30:0"]

1. e4 {[%emt 0:00:00]} e5 {[%emt 0:00:00]} 2. Nf3 {[%emt 0:00:00]} d6 {[%emt 0:00:00]} 3. d4 {[%emt 0:00:00]} exd4 {[%emt 0:00:00]} 4. Nxd4 {[%emt 0:00:00]} Nf6 {[%emt 0:00:00]} 5. Nc3 {[%emt 0:00:00]} Be7 {[%emt 0:00:00]} 6. g3 {[%emt 0:00:00]} O-O {[%emt 0:00:00]} 7. Bg2 {[%emt 0:00:01]} Nc6 {[%emt 0:00:00]} 8. Nxc6 {[%emt 0:00:05]} bxc6 {[%emt 0:00:00]} 9. O-O {[%emt 0:00:06]} Bg4 {[%emt 0:00:00]} 10. Qd3 {[%emt 0:00:06]} Qd7 {[%emt 0:03:34]} 11. b3 {[%emt 0:00:07]} Bh3 {[%emt 0:00:07]} 12. Bb2 {[%emt 0:00:00]} Bxg2 {[%emt 0:01:18]} 13. Kxg2 Rfe8 {[%emt 0:09:35]} 14. Rfe1 {[%emt 0:02:57]} Bf8 15. Rad1 {[%emt 0:06:23]} Qc8 {[%emt 0:06:56]} 16. f3 {[%emt 0:06:52]} a5 {[%emt 0:08:42]} 17. Ne2 {[%emt 0:03:17]} Nd7 {[%emt 0:00:48]} 18. Qc3 {[%emt 0:03:27]} Qa6 {[%emt 0:00:16]} 19. Nd4 {[%emt 0:00:33]} c5 {[%emt 0:00:27]} 20. Nf5 {[%emt 0:00:14]} f6 21. h4 {[%emt 0:22:40]} a4 {[%emt 0:19:57]} 22. h5 {[%emt 0:00:34]} Rac8 {[%emt 0:01:44]} 23. Qd2 {[%emt 0:07:42]} Qc6 {[%emt 0:01:44]} 24. Qd3 {[%emt 0:01:20]} Ne5 {[%emt 0:18:56]} 25. Bxe5 {[%emt 0:07:06]} Rxe5 {[%emt 0:00:14]} 26. Qc4+ {[%emt 0:00:08]} Kh8 {[%emt 0:00:03]} 27. g4 {[%emt 0:00:29]} Qe8 {[%emt 0:04:16]} 28. f4 {[%emt 0:07:20]} Re6 {[%emt 0:00:09]} 29. Kf3 {[%emt 0:00:03]} c6 {[%emt 0:01:25]} 30. Rh1 {[%emt 0:00:37]} axb3 {[%emt 0:13:35]} 31. axb3 {[%emt 1:30:29]} d5 {[%emt 1:30:21]} 32. exd5 {[%emt 0:00:40]} cxd5 {[%emt 0:00:13]} 33. Rxd5 {[%emt 0:04:31]} Qc6 {[%emt 0:00:28]} 34. Kg3 {[%emt 0:14:53]} Rce8 {[%emt 0:00:10]} 35. Qd3 {[%emt 0:00:13]} Kg8 {[%emt 0:02:39]} 36. Qc4 {[%emt 0:08:34]} Kh8 {[%emt 0:02:14]} 37. Rhd1 {[%emt 0:01:30]} Re4 {[%emt 0:01:11]} 38. Qf1 {[%emt 0:00:39]} c4 {[%emt 0:01:46]} 39. bxc4 {[%emt 0:01:48]} Rxc4 {[%emt 0:00:07]} 40. R5d3 {[%emt 0:00:48]} Qc8 {[%emt 0:04:30]} 41. c3 {[%emt 0:00:00]} Rxc3 {[%emt 0:00:00]} 42. Rxc3 {[%emt 0:00:00]} Qxc3+ {[%emt 0:00:00]} 1/2-1/2

[Event "GER-chT Youth Countries 2020"]
[Site "Berlin"]
[Date "2020.10.03"]
[Round "6"]
[White "Pallas, Sebastian"]
[Black "Schneider, Jana"]
[Result "1/2-1/2"]
[ECO "C76"]
[WhiteElo "2315"]
[BlackElo "2270"]
[Annotator "ChessBase"]
[PlyCount "77"]
[EventDate "2020.09.30"]
[EventType "team-tourn"]
[EventRounds "7"]
[EventCountry "GER"]
[SourceTitle "playchess.com"]
[Source "ChessBase"]
[SourceQuality "1"]
[TimeControl "30/5400+30:0"]

1. e4 {[%emt 0:00:00]} e5 {[%emt 0:00:00]} 2. Nf3 {[%emt 0:00:03]} Nc6 {[%emt 0:00:00]} 3. Bb5 {[%emt 0:00:36]} a6 {[%emt 0:00:00]} 4. Ba4 {[%emt 0:00:10]} d6 {[%emt 0:00:00]} 5. c3 {[%emt 0:01:04]} Bd7 {[%emt 0:00:06]} 6. d4 {[%emt 0:00:48]} g6 {[%emt 0:00:09]} 7. O-O {[%emt 0:00:57]} Bg7 {[%emt 0:00:05]} 8. Re1 {[%emt 0:01:59]} Nf6 {[%emt 0:02:02]} 9. Bxc6 {[%emt 0:13:51]} Bxc6 {[%emt 0:01:07]} 10. dxe5 {[%emt 0:00:05]} Nxe4 {[%emt 0:09:44]} 11. exd6 {[%emt 0:00:40]} O-O {[%emt 0:00:54]} 12. dxc7 {[%emt 0:00:50]} Qxc7 {[%emt 0:00:16]} 13. Be3 {[%emt 0:02:28]} Rad8 {[%emt 0:04:38]} 14. Nbd2 {[%emt 0:05:17]} Nxd2 {[%emt 0:06:18]} 15. Nxd2 {[%emt 0:00:36]} b5 {[%emt 0:04:05]} 16. Qe2 {[%emt 0:13:53]} Rfe8 {[%emt 0:13:10]} 17. Rad1 {[%emt 0:07:34]} Qb7 {[%emt 0:12:00]} 18. Nf3 {[%emt 0:03:54]} Rxd1 {[%emt 0:01:44]} 19. Qxd1 {[%emt 0:04:03]} b4 {[%emt 0:02:18]} 20. cxb4 {[%emt 0:05:49]} Bxb2 {[%emt 0:07:18]} 21. Bc5 {[%emt 0:03:11]} Rxe1+ {[%emt 0:05:55]} 22. Nxe1 {[%emt 0:00:45]} Qd7 {[%emt 0:03:15]} 23. Qxd7 {[%emt 0:03:00]} Bxd7 {[%emt 0:00:05]} 24. Nd3 {[%emt 0:03:30]} Bg7 {[%emt 0:02:13]} 25. Kf1 {[%emt 0:04:27]} f5 {[%emt 0:00:28]} 26. Ke2 {[%emt 0:02:06]} Kf7 {[%emt 0:01:24]} 27. Ke3 {[%emt 0:00:41]} Bh6+ {[%emt 0:03:19]} 28. Kd4 {[%emt 0:06:10]} Bg7+ {[%emt 0:00:18]} 29. Ne5+ {[%emt 0:01:57]} Ke6 {[%emt 0:00:45]} 30. f4 {[%emt 0:00:03]} g5 {[%emt 0:01:19]} 31. g3 {[%emt 1:30:09]} h5 {[%emt 1:31:18]} 32. Bb6 {[%emt 0:02:01]} h4 {[%emt 0:00:32]} 33. Bc7 {[%emt 0:03:51]} hxg3 {[%emt 0:00:15]} 34. hxg3 {[%emt 0:00:03]} gxf4 {[%emt 0:00:08]} 35. gxf4 {[%emt 0:00:05]} Bb5 {[%emt 0:01:39]} 36. a3 {[%emt 0:00:57]} Bf6 {[%emt 0:02:02]} 37. Kc5 {[%emt 0:02:27]} Bxe5 {[%emt 0:00:11]} 38. fxe5 {[%emt 0:02:18]} f4 {[%emt 0:00:11]} 39. Kd4 {[%emt 0:00:22]} 1/2-1/2

[Event "GER-chT Youth Countries 2020"]
[Site "Berlin"]
[Date "2020.10.03"]
[Round "6"]
[White "Richter, Nils"]
[Black "Fromm, Marius"]
[Result "1/2-1/2"]
[ECO "D42"]
[WhiteElo "2307"]
[BlackElo "2190"]
[Annotator "ChessBase"]
[PlyCount "56"]
[EventDate "2020.09.30"]
[EventType "team-tourn"]
[EventRounds "7"]
[EventCountry "GER"]
[SourceTitle "playchess.com"]
[Source "ChessBase"]
[SourceQuality "1"]
[TimeControl "30/5400+30:0"]

1. c4 {[%emt 0:00:00]} c5 {[%emt 0:00:00]} 2. Nf3 {[%emt 0:00:00]} Nc6 {[%emt 0:00:00]} 3. e3 {[%emt 0:00:00]} Nf6 {[%emt 0:00:58]} 4. Nc3 {[%emt 0:00:00]} e6 {[%emt 0:06:15]} 5. d4 {[%emt 0:00:18]} d5 {[%emt 0:00:04]} 6. cxd5 {[%emt 0:00:13]} Nxd5 {[%emt 0:00:06]} 7. Bd3 {[%emt 0:00:42]} Be7 {[%emt 0:00:08]} 8. O-O {[%emt 0:00:12]} O-O {[%emt 0:00:13]} 9. Qe2 {[%emt 0:00:12]} cxd4 {[%emt 0:07:29]} 10. exd4 {[%emt 0:00:02]} Bd7 {[%emt 0:00:09]} 11. Rd1 {[%emt 0:11:04]} Re8 {[%emt 0:31:08]} 12. Nxd5 {[%emt 0:31:54]} exd5 {[%emt 0:00:19]} 13. Ne5 {[%emt 0:00:02]} g6 {[%emt 0:11:06]} 14. Qf3 {[%emt 0:01:16]} Be6 {[%emt 0:01:30]} 15. Nxc6 {[%emt 0:00:23]} bxc6 {[%emt 0:00:03]} 16. Bf4 {[%emt 0:13:15]} Qb6 {[%emt 0:04:33]} 17. Rab1 {[%emt 0:01:29]} a5 {[%emt 0:05:56]} 18. Be5 {[%emt 0:01:53]} Rec8 {[%emt 0:05:03]} 19. h3 {[%emt 0:04:25]} c5 {[%emt 0:03:20]} 20. dxc5 {[%emt 0:02:00]} Qxc5 {[%emt 0:00:07]} 21. Qf4 {[%emt 0:00:50]} Qb4 {[%emt 0:01:45]} 22. Qf3 {[%emt 0:06:29]} Rc6 {[%emt 0:01:38]} 23. a3 {[%emt 0:03:22]} Qb3 {[%emt 0:03:06]} 24. Be2 {[%emt 0:00:02]} Qb7 {[%emt 0:06:02]} 25. Bc3 {[%emt 0:03:12]} Qc7 {[%emt 0:03:22]} 26. Qe3 {[%emt 0:03:21]} Bc5 {[%emt 0:01:29]} 27. Bd4 {[%emt 0:02:12]} Bxd4 {[%emt 0:02:24]} 28. Qxd4 {[%emt 0:00:01]} Rb8 {[%emt 0:00:32]} 1/2-1/2

[Event "GER-chT Youth Countries 2020"]
[Site "Berlin"]
[Date "2020.10.03"]
[Round "6"]
[White "Schmider, Niklas"]
[Black "Kuznecovs, Nikita"]
[Result "1/2-1/2"]
[ECO "C11"]
[WhiteElo "2291"]
[BlackElo "2276"]
[Annotator "ChessBase"]
[PlyCount "65"]
[EventDate "2020.09.30"]
[EventType "team-tourn"]
[EventRounds "7"]
[EventCountry "GER"]
[SourceTitle "playchess.com"]
[Source "ChessBase"]
[SourceQuality "1"]
[TimeControl "30/5400+30:0"]

1. e4 {[%emt 0:00:00]} e6 {[%emt 0:00:00]} 2. d4 {[%emt 0:00:00]} d5 {[%emt 0:00:00]} 3. Nc3 {[%emt 0:00:00]} Nf6 {[%emt 0:00:00]} 4. e5 {[%emt 0:00:00]} Nfd7 {[%emt 0:00:00]} 5. f4 {[%emt 0:00:00]} c5 {[%emt 0:00:00]} 6. Nf3 {[%emt 0:00:02]} Nc6 {[%emt 0:00:00]} 7. Be3 {[%emt 0:00:06]} Be7 {[%emt 0:00:05]} 8. Qd2 {[%emt 0:00:17]} b6 {[%emt 0:00:05]} 9. Bb5 {[%emt 0:01:29]} Bb7 {[%emt 0:00:06]} 10. O-O-O {[%emt 0:09:50]} a6 {[%emt 0:00:11]} 11. Bxc6 {[%emt 0:00:53]} Bxc6 {[%emt 0:00:06]} 12. f5 {[%emt 0:02:01]} O-O {[%emt 0:07:36]} 13. h4 {[%emt 0:11:25]} Rc8 {[%emt 0:04:28]} 14. fxe6 {[%emt 0:10:07]} fxe6 {[%emt 0:00:06]} 15. Ng5 {[%emt 0:00:25]} Bxg5 {[%emt 0:00:42]} 16. hxg5 {[%emt 0:01:35]} g6 {[%emt 0:00:09]} 17. Ne2 {[%emt 0:06:48]} Ba4 {[%emt 0:05:00]} 18. b3 {[%emt 0:16:14]} Bb5 {[%emt 0:00:07]} 19. Nf4 {[%emt 0:01:23]} Qe7 {[%emt 0:04:33]} 20. Rh6 {[%emt 0:08:19]} Rf7 {[%emt 0:16:07]} 21. Rdh1 {[%emt 0:03:34]} Nf8 {[%emt 0:00:07]} 22. Nh3 {[%emt 0:07:53]} c4 {[%emt 0:00:14]} 23. Kb1 {[%emt 0:01:04]} cxb3 {[%emt 0:01:45]} 24. cxb3 {[%emt 0:00:45]} Qa3 {[%emt 0:02:05]} 25. Nf2 {[%emt 0:00:15]} Rfc7 {[%emt 0:00:07]} 26. Ng4 {[%emt 0:01:38]} Rc2 {[%emt 0:08:32]} 27. Nf6+ {[%emt 0:00:08]} Kg7 {[%emt 0:00:58]} 28. Rxh7+ {[%emt 0:00:27]} Nxh7 {[%emt 0:00:07]} 29. Rxh7+ {[%emt 0:00:02]} Kf8 {[%emt 0:00:12]} 30. Rh8+ {[%emt 0:00:04]} Kg7 {[%emt 0:00:27]} 31. Rh7+ {[%emt 1:30:07]} Kf8 {[%emt 1:30:06]} 32. Rh8+ {[%emt 0:00:03]} Kg7 {[%emt 0:00:04]} 33. Rh7+ {[%emt 0:00:07]} 1/2-1/2

[Event "GER-chT Youth Countries 2020"]
[Site "Berlin"]
[Date "2020.10.03"]
[Round "6"]
[White "Goldbeck, Lars"]
[Black "Roseneck, Jonas"]
[Result "0-1"]
[ECO "D38"]
[WhiteElo "2273"]
[BlackElo "2417"]
[Annotator "ChessBase"]
[PlyCount "67"]
[EventDate "2020.09.30"]
[EventType "team-tourn"]
[EventRounds "7"]
[EventCountry "GER"]
[SourceTitle "playchess.com"]
[Source "ChessBase"]
[SourceQuality "1"]
[TimeControl "30/5400+30:0"]

1. d4 {[%emt 0:00:00]} Nf6 {[%emt 0:00:00]} 2. c4 {[%emt 0:00:00]} e6 {[%emt 0:00:00]} 3. Nf3 {[%emt 0:00:00]} d5 {[%emt 0:00:00]} 4. Nc3 {[%emt 0:00:00]} Bb4 {[%emt 0:00:17]} 5. cxd5 {[%emt 0:00:00]} exd5 {[%emt 0:00:05]} 6. Bf4 {[%emt 0:00:00]} Bf5 {[%emt 0:19:00]} 7. Qb3 {[%emt 0:09:02]} Nc6 {[%emt 0:11:05]} 8. a3 {[%emt 0:05:52]} Bxc3+ {[%emt 0:02:29]} 9. bxc3 {[%emt 0:00:02]} O-O {[%emt 0:01:54]} 10. e3 {[%emt 0:05:18]} Na5 {[%emt 0:01:52]} 11. Qb4 {[%emt 0:00:35]} b6 {[%emt 0:00:14]} 12. Be2 {[%emt 0:13:12]} c5 {[%emt 0:00:54]} 13. Qb2 {[%emt 0:00:01]} cxd4 {[%emt 0:20:33]} 14. Nxd4 {[%emt 0:02:19]} Bg6 {[%emt 0:01:05]} 15. O-O {[%emt 0:01:00]} Nc4 {[%emt 0:02:30]} 16. Qa2 {[%emt 0:04:21]} Rc8 {[%emt 0:00:34]} 17. Rfd1 {[%emt 0:01:02]} Ne4 {[%emt 0:10:47]} 18. Rac1 {[%emt 0:00:28]} Qe7 {[%emt 0:01:14]} 19. a4 {[%emt 0:03:42]} Na5 {[%emt 0:05:34]} 20. Qb2 {[%emt 0:01:44]} Rfd8 {[%emt 0:00:25]} 21. Ba6 {[%emt 0:09:42]} Rc5 {[%emt 0:01:26]} 22. Nb3 {[%emt 0:01:15]} Nxb3 {[%emt 0:01:49]} 23. Qxb3 {[%emt 0:00:01]} Qf6 {[%emt 0:01:21]} 24. Rd4 {[%emt 0:01:41]} h6 {[%emt 0:00:42]} 25. Bg3 {[%emt 0:13:01]} Kh7 {[%emt 0:02:48]} 26. f3 {[%emt 0:07:01]} Ng5 {[%emt 0:01:18]} 27. Bh4 {[%emt 0:05:47]} Re8 {[%emt 0:01:55]} 28. c4 {[%emt 0:07:45]} dxc4 {[%emt 0:02:05]} 29. Rcxc4 {[%emt 0:00:10]} Rce5 {[%emt 0:01:21]} 30. Bf2 {[%emt 0:00:54]} Ne6 {[%emt 0:01:04]} 31. Rd6 {[%emt 1:34:06]} Qe7 {[%emt 1:30:05]} 32. Rcc6 {[%emt 0:00:21]} Nc5 {[%emt 0:00:41]} 33. Qc4 {[%emt 0:00:13]} Rxe3 {[%emt 0:00:54]} 34. h3 {[%emt 0:02:51]} 0-1